[Event "Early Titled Tuesday Blitz | February 8 2022"]
[White "Decuigniere, Tom"]
[Black "Tologon tegin, Semetei"]
[WhiteFideId "26093820"]
[BlackFideId "13800574"]
[WhiteElo "1997"]
[BlackElo "2258"]
[Result "0-1"]
[Round "06"]
[TimeControl "180+1"]
[Date "2022.02.08"]
[WhiteClock "0:00:08"]
[BlackClock "0:00:08"]

1. c4 {[%clk 0:03:00]}  Nf6 {[%clk 0:02:56]} 2. Nc3 {[%clk 0:03:00]}  e6 {[%clk 0:02:50]} 3. e4 {[%clk 0:03:00]}  d6 {[%clk 0:02:45]} 4. d4 {[%clk 0:02:59]}  g6 {[%clk 0:02:45]} 5. Be2 {[%clk 0:02:56]}  Bg7 {[%clk 0:02:45]} 6. h4 {[%clk 0:02:57]}  h5 {[%clk 0:02:36]} 7. Bg5 {[%clk 0:02:54]}  Nc6 {[%clk 0:02:35]} 8. Nf3 {[%clk 0:02:47]}  Ne7 {[%clk 0:02:21]} 9. Qd2 {[%clk 0:02:22]}  b6 {[%clk 0:02:07]} 10. e5 {[%clk 0:02:11]}  dxe5 {[%clk 0:02:07]} 11. dxe5 {[%clk 0:01:52]}  Qxd2+ {[%clk 0:02:02]} 12. Nxd2 {[%clk 0:01:51]}  Ng4 {[%clk 0:01:55]} 13. f4 {[%clk 0:01:19]}  Bb7 {[%clk 0:01:52]} 14. Nb5 {[%clk 0:01:16]}  Rc8 {[%clk 0:01:11]} 15. Nxa7 {[%clk 0:01:16]}  Rd8 {[%clk 0:01:11]} 16. Nb5 {[%clk 0:01:14]}  Rd7 {[%clk 0:01:11]} 17. Bf3 {[%clk 0:01:04]}  Bxf3 {[%clk 0:01:06]} 18. gxf3 {[%clk 0:01:05]}  Ne3 {[%clk 0:00:59]} 19. Ke2 {[%clk 0:01:05]}  N7f5 {[%clk 0:00:50]} 20. Ne4 {[%clk 0:00:54]}  O-O {[%clk 0:00:37]} 21. Rac1 {[%clk 0:00:54]}  Ra8 {[%clk 0:00:28]} 22. a3 {[%clk 0:00:51]}  Kh8 {[%clk 0:00:27]} 23. Rc3 {[%clk 0:00:51]}  Bf8 {[%clk 0:00:26]} 24. Rxe3 {[%clk 0:00:49]}  Nxe3 {[%clk 0:00:27]} 25. Kxe3 {[%clk 0:00:50]}  Ra4 {[%clk 0:00:23]} 26. b3 {[%clk 0:00:47]}  Ra5 {[%clk 0:00:22]} 27. a4 {[%clk 0:00:46]}  c6 {[%clk 0:00:13]} 28. Nbd6 {[%clk 0:00:45]}  Bxd6 {[%clk 0:00:13]} 29. Nxd6 {[%clk 0:00:45]}  Kg7 {[%clk 0:00:12]} 30. Bf6+ {[%clk 0:00:45]}  Kf8 {[%clk 0:00:12]} 31. Rd1 {[%clk 0:00:41]}  Raa7 {[%clk 0:00:11]} 32. Ke2 {[%clk 0:00:36]}  c5 {[%clk 0:00:10]} 33. Ne4 {[%clk 0:00:26]}  Rxd1 {[%clk 0:00:09]} 34. Kxd1 {[%clk 0:00:27]}  Rd7+ {[%clk 0:00:09]} 35. Kc2 {[%clk 0:00:27]}  Ke8 {[%clk 0:00:09]} 36. Nc3 {[%clk 0:00:20]}  Rd4 {[%clk 0:00:08]} 37. Ne2 {[%clk 0:00:21]}  Rd7 {[%clk 0:00:08]} 38. Kc3 {[%clk 0:00:20]}  Rd1 {[%clk 0:00:07]} 39. b4 {[%clk 0:00:19]}  cxb4+ {[%clk 0:00:07]} 40. Kxb4 {[%clk 0:00:20]}  Rd2 {[%clk 0:00:07]} 41. Nc3 {[%clk 0:00:19]}  Rd3 {[%clk 0:00:07]} 42. Ne4 {[%clk 0:00:18]}  Rxf3 {[%clk 0:00:07]} 43. Bg5 {[%clk 0:00:17]}  Kd7 {[%clk 0:00:07]} 44. c5 {[%clk 0:00:13]}  Kc6 {[%clk 0:00:07]} 45. cxb6 {[%clk 0:00:12]}  Kxb6 {[%clk 0:00:08]} 46. a5+ {[%clk 0:00:12]}  Kc6 {[%clk 0:00:07]} 47. Nd6 {[%clk 0:00:12]}  Rf1 {[%clk 0:00:06]} 48. Nxf7 {[%clk 0:00:12]}  Rb1+ {[%clk 0:00:06]} 49. Kc4 {[%clk 0:00:12]}  Ra1 {[%clk 0:00:07]} 50. Nd8+ {[%clk 0:00:10]}  Kd7 {[%clk 0:00:07]} 51. Nb7 {[%clk 0:00:11]}  Kc6 {[%clk 0:00:07]} 52. Nc5 {[%clk 0:00:11]}  Rc1+ {[%clk 0:00:07]} 53. Kd4 {[%clk 0:00:10]}  Rxc5 {[%clk 0:00:08]} 54. Bd8 {[%clk 0:00:08]}  Rd5+ {[%clk 0:00:08]} 0-1


[Site "https://www.chess.com"]

[Event "Early Titled Tuesday Blitz | February 8 2022"]
[White "Derraugh, Geordie"]
[Black "Bilan, Danila"]
[WhiteFideId "2603950"]
[BlackFideId "24161918"]
[WhiteElo "2116"]
[BlackElo "2164"]
[Result "1-0"]
[Round "06"]
[TimeControl "180+1"]
[Date "2022.02.08"]
[WhiteClock "0:00:10"]
[BlackClock "0:00:02"]

1. e4 {[%clk 0:03:00]}  c6 {[%clk 0:03:00]} 2. d4 {[%clk 0:02:58]}  d5 {[%clk 0:03:00]} 3. f3 {[%clk 0:02:59]}  dxe4 {[%clk 0:02:56]} 4. fxe4 {[%clk 0:02:58]}  e5 {[%clk 0:02:55]} 5. Nf3 {[%clk 0:02:57]}  Bg4 {[%clk 0:02:54]} 6. Bc4 {[%clk 0:02:55]}  Bxf3 {[%clk 0:02:37]} 7. Qxf3 {[%clk 0:02:52]}  Nf6 {[%clk 0:02:31]} 8. dxe5 {[%clk 0:02:45]}  Qa5+ {[%clk 0:02:31]} 9. Nc3 {[%clk 0:02:35]}  Qxe5 {[%clk 0:02:29]} 10. Bf4 {[%clk 0:02:26]}  Qd4 {[%clk 0:02:10]} 11. Bxf7+ {[%clk 0:02:17]}  Kxf7 {[%clk 0:02:05]} 12. e5 {[%clk 0:02:12]}  Bb4 {[%clk 0:01:53]} 13. exf6 {[%clk 0:02:11]}  Re8+ {[%clk 0:01:48]} 14. Kf1 {[%clk 0:02:11]}  Qc4+ {[%clk 0:01:04]} 15. Ne2 {[%clk 0:02:10]}  Rxe2 {[%clk 0:01:02]} 16. Qh5+ {[%clk 0:01:51]}  Kg8 {[%clk 0:00:44]} 17. Qxe2 {[%clk 0:01:18]}  Qxf4+ {[%clk 0:00:42]} 18. Qf3 {[%clk 0:01:14]}  Qc4+ {[%clk 0:00:22]} 19. Qd3 {[%clk 0:01:14]}  Qf7 {[%clk 0:00:21]} 20. Qd8+ {[%clk 0:01:07]}  Bf8 {[%clk 0:00:19]} 21. Re1 {[%clk 0:01:00]}  Na6 {[%clk 0:00:02]} 22. Qxa8 {[%clk 0:00:56]}  Qxf6+ {[%clk 0:00:02]} 23. Ke2 {[%clk 0:00:56]}  Qe5+ {[%clk 0:00:02]} 24. Kd1 {[%clk 0:00:45]}  Qxb2 {[%clk 0:00:03]} 25. Rhf1 {[%clk 0:00:15]}  Qb1+ {[%clk 0:00:03]} 26. Kd2 {[%clk 0:00:16]}  Qb4+ {[%clk 0:00:03]} 27. Kc1 {[%clk 0:00:16]}  Qa3+ {[%clk 0:00:02]} 28. Kd1 {[%clk 0:00:16]}  Nc7 {[%clk 0:00:01]} 29. Qd8 {[%clk 0:00:11]}  Nd5 {[%clk 0:00:02]} 30. Rxf8+ {[%clk 0:00:09]}  Qxf8 {[%clk 0:00:02]} 31. Re8 {[%clk 0:00:10]} 1-0


[Site "https://www.chess.com"]

[Event "Early Titled Tuesday Blitz | February 8 2022"]
[White "Dushyant Sharma"]
[Black "Allahverdiyeva, Ayan"]
[WhiteFideId "25065130"]
[BlackFideId "13412590"]
[WhiteElo "2012"]
[BlackElo "1910"]
[Result "0-1"]
[Round "06"]
[TimeControl "180+1"]
[Date "2022.02.08"]
[WhiteClock "0:01:02"]
[BlackClock "0:00:05"]

1. e4 {[%clk 0:03:00]}  c5 {[%clk 0:02:59]} 2. Nf3 {[%clk 0:03:00]}  d6 {[%clk 0:02:58]} 3. d4 {[%clk 0:03:01]}  cxd4 {[%clk 0:02:59]} 4. Nxd4 {[%clk 0:03:01]}  Nf6 {[%clk 0:02:59]} 5. Nc3 {[%clk 0:03:02]}  a6 {[%clk 0:02:58]} 6. f4 {[%clk 0:03:02]}  e6 {[%clk 0:02:49]} 7. Nf3 {[%clk 0:03:02]}  Be7 {[%clk 0:02:48]} 8. Bd3 {[%clk 0:03:02]}  Nbd7 {[%clk 0:02:47]} 9. a4 {[%clk 0:03:02]}  Qc7 {[%clk 0:02:46]} 10. O-O {[%clk 0:03:03]}  O-O {[%clk 0:02:43]} 11. Kh1 {[%clk 0:03:03]}  b6 {[%clk 0:02:37]} 12. Qe1 {[%clk 0:03:02]}  Bb7 {[%clk 0:02:37]} 13. Bd2 {[%clk 0:02:59]}  Nc5 {[%clk 0:02:24]} 14. b4 {[%clk 0:02:38]}  Nxd3 {[%clk 0:02:20]} 15. cxd3 {[%clk 0:02:38]}  Rac8 {[%clk 0:02:07]} 16. Rc1 {[%clk 0:02:33]}  Qb8 {[%clk 0:02:06]} 17. Qf2 {[%clk 0:02:26]}  Ba8 {[%clk 0:02:01]} 18. Qg3 {[%clk 0:02:25]}  Kh8 {[%clk 0:01:41]} 19. Qh3 {[%clk 0:02:14]}  Kg8 {[%clk 0:00:37]} 20. Ng5 {[%clk 0:02:03]}  h6 {[%clk 0:00:36]} 21. Nxe6 {[%clk 0:01:47]}  fxe6 {[%clk 0:00:34]} 22. Qxe6+ {[%clk 0:01:48]}  Rf7 {[%clk 0:00:34]} 23. Nd5 {[%clk 0:01:48]}  Re8 {[%clk 0:00:22]} 24. Nxe7+ {[%clk 0:01:41]}  Rxe7 {[%clk 0:00:18]} 25. Rc8+ {[%clk 0:01:42]}  Kh7 {[%clk 0:00:15]} 26. Qxf7 {[%clk 0:01:37]}  Qxc8 {[%clk 0:00:14]} 27. Qxe7 {[%clk 0:01:37]}  Qg4 {[%clk 0:00:15]} 28. Bc3 {[%clk 0:01:35]}  Qe2 {[%clk 0:00:14]} 29. Rg1 {[%clk 0:01:36]}  Kg6 {[%clk 0:00:09]} 30. f5+ {[%clk 0:01:35]}  Kh5 {[%clk 0:00:09]} 31. Bxf6 {[%clk 0:01:32]}  gxf6 {[%clk 0:00:09]} 32. Qg7 {[%clk 0:01:32]}  Kh4 {[%clk 0:00:05]} 33. Qxh6+ {[%clk 0:01:30]}  Kg4 {[%clk 0:00:06]} 34. Qh3+ {[%clk 0:01:30]}  Kg5 {[%clk 0:00:06]} 35. Qg3+ {[%clk 0:01:28]}  Kh5 {[%clk 0:00:05]} 36. Qg6+ {[%clk 0:01:29]}  Kh4 {[%clk 0:00:05]} 37. g3+ {[%clk 0:01:29]}  Kh3 {[%clk 0:00:05]} 38. Qh5+ {[%clk 0:01:29]}  Qxh5 {[%clk 0:00:04]} 39. g4 {[%clk 0:01:28]}  Qh8 {[%clk 0:00:04]} 40. Rg3+ {[%clk 0:01:28]}  Kh4 {[%clk 0:00:04]} 41. Kg2 {[%clk 0:01:28]}  Qc8 {[%clk 0:00:04]} 42. Rh3+ {[%clk 0:01:26]}  Kxg4 {[%clk 0:00:02]} 43. Rg3+ {[%clk 0:01:25]}  Kh5 {[%clk 0:00:02]} 44. Rh3+ {[%clk 0:01:24]}  Kg5 {[%clk 0:00:02]} 45. Rg3+ {[%clk 0:01:14]}  Kh6 {[%clk 0:00:02]} 46. Rg6+ {[%clk 0:01:14]}  Kh7 {[%clk 0:00:02]} 47. Rxf6 {[%clk 0:01:15]}  Qc2+ {[%clk 0:00:03]} 48. Kf3 {[%clk 0:01:11]}  Qxd3+ {[%clk 0:00:03]} 49. Kf4 {[%clk 0:01:12]}  Qxe4+ {[%clk 0:00:03]} 50. Kg5 {[%clk 0:01:13]}  Qe3+ {[%clk 0:00:04]} 51. Kh4 {[%clk 0:01:11]}  Bf3 {[%clk 0:00:04]} 52. Rg6 {[%clk 0:01:02]}  Qf4+ {[%clk 0:00:04]} 53. Kh3 {[%clk 0:01:02]}  Qxf5+ {[%clk 0:00:05]} 54. Rg4 {[%clk 0:01:02]}  Qxg4# {[%clk 0:00:05]} 0-1


[Site "https://www.chess.com"]

[Event "Early Titled Tuesday Blitz | February 8 2022"]
[White "Dylag, Emilia"]
[Black "Samaganova, Aleksandra"]
[WhiteFideId "21805172"]
[BlackFideId "13800221"]
[WhiteElo "1932"]
[BlackElo "1859"]
[Result "1-0"]
[Round "06"]
[TimeControl "180+1"]
[Date "2022.02.08"]
[WhiteClock "0:00:28"]
[BlackClock "0:00:02"]

1. d4 {[%clk 0:03:00]}  Nf6 {[%clk 0:02:59]} 2. c4 {[%clk 0:02:58]}  e6 {[%clk 0:02:59]} 3. Nc3 {[%clk 0:02:58]}  Bb4 {[%clk 0:02:59]} 4. a3 {[%clk 0:02:59]}  Bxc3+ {[%clk 0:02:59]} 5. bxc3 {[%clk 0:02:59]}  b6 {[%clk 0:02:55]} 6. f3 {[%clk 0:02:58]}  Bb7 {[%clk 0:02:55]} 7. e4 {[%clk 0:02:59]}  d6 {[%clk 0:02:51]} 8. Bd3 {[%clk 0:02:58]}  O-O {[%clk 0:02:51]} 9. Nh3 {[%clk 0:02:57]}  Nbd7 {[%clk 0:02:48]} 10. O-O {[%clk 0:02:57]}  e5 {[%clk 0:02:47]} 11. Bg5 {[%clk 0:02:55]}  h6 {[%clk 0:02:42]} 12. Bh4 {[%clk 0:02:54]}  Qe8 {[%clk 0:02:42]} 13. Qc2 {[%clk 0:02:52]}  c6 {[%clk 0:02:18]} 14. Rae1 {[%clk 0:02:48]}  Ba6 {[%clk 0:02:02]} 15. f4 {[%clk 0:02:46]}  Ng4 {[%clk 0:01:29]} 16. Qe2 {[%clk 0:02:33]}  Ndf6 {[%clk 0:01:11]} 17. fxe5 {[%clk 0:02:25]}  dxe5 {[%clk 0:01:06]} 18. d5 {[%clk 0:02:25]}  Rc8 {[%clk 0:00:40]} 19. Kh1 {[%clk 0:02:10]}  Qd7 {[%clk 0:00:33]} 20. Ng1 {[%clk 0:02:08]}  Nh7 {[%clk 0:00:28]} 21. Nf3 {[%clk 0:02:01]}  Rfe8 {[%clk 0:00:24]} 22. Bg3 {[%clk 0:01:52]}  cxd5 {[%clk 0:00:20]} 23. cxd5 {[%clk 0:01:49]}  Bxd3 {[%clk 0:00:19]} 24. Qxd3 {[%clk 0:01:49]}  Qd6 {[%clk 0:00:12]} 25. h3 {[%clk 0:01:43]}  Ngf6 {[%clk 0:00:12]} 26. c4 {[%clk 0:01:05]}  Qc5 {[%clk 0:00:10]} 27. Nxe5 {[%clk 0:01:01]}  Ng5 {[%clk 0:00:08]} 28. h4 {[%clk 0:00:56]}  Ngh7 {[%clk 0:00:06]} 29. Qf3 {[%clk 0:00:52]}  Nf8 {[%clk 0:00:05]} 30. Rc1 {[%clk 0:00:46]}  Re7 {[%clk 0:00:05]} 31. Rfe1 {[%clk 0:00:46]}  N8d7 {[%clk 0:00:04]} 32. Nd3 {[%clk 0:00:45]}  Qxa3 {[%clk 0:00:04]} 33. e5 {[%clk 0:00:43]}  Nh7 {[%clk 0:00:03]} 34. Qf5 {[%clk 0:00:32]}  Nc5 {[%clk 0:00:03]} 35. Qxc8+ {[%clk 0:00:30]}  Nf8 {[%clk 0:00:02]} 36. Nxc5 {[%clk 0:00:30]}  bxc5 {[%clk 0:00:02]} 37. Bf2 {[%clk 0:00:28]} 1-0


[Site "https://www.chess.com"]

[Event "Early Titled Tuesday Blitz | February 8 2022"]
[White "Goldin, Roman"]
[Black "Cramling Bellon, Anna"]
[WhiteFideId "2803860"]
[BlackFideId "32009232"]
[WhiteElo "2312"]
[BlackElo "1905"]
[Result "1-0"]
[Round "06"]
[TimeControl "180+1"]
[Date "2022.02.08"]
[WhiteClock "0:00:48"]
[BlackClock "0:00:03"]

1. Nf3 {[%clk 0:02:50]}  d5 {[%clk 0:02:59]} 2. b3 {[%clk 0:02:48]}  c5 {[%clk 0:02:59]} 3. Bb2 {[%clk 0:02:48]}  Nc6 {[%clk 0:02:56]} 4. e3 {[%clk 0:02:46]}  d4 {[%clk 0:02:56]} 5. Bb5 {[%clk 0:02:44]}  dxe3 {[%clk 0:02:46]} 6. Bxc6+ {[%clk 0:02:32]}  bxc6 {[%clk 0:02:45]} 7. fxe3 {[%clk 0:02:32]}  Nf6 {[%clk 0:02:39]} 8. O-O {[%clk 0:02:31]}  Bg4 {[%clk 0:02:35]} 9. d3 {[%clk 0:02:30]}  e6 {[%clk 0:02:35]} 10. Nbd2 {[%clk 0:02:30]}  Be7 {[%clk 0:02:34]} 11. Qe1 {[%clk 0:02:30]}  O-O {[%clk 0:02:34]} 12. Qg3 {[%clk 0:02:29]}  Bf5 {[%clk 0:02:21]} 13. Nc4 {[%clk 0:02:28]}  Bg6 {[%clk 0:02:18]} 14. Nfe5 {[%clk 0:02:27]}  Qd5 {[%clk 0:02:11]} 15. e4 {[%clk 0:02:26]}  Qd8 {[%clk 0:01:57]} 16. Nxc6 {[%clk 0:02:26]}  Qe8 {[%clk 0:01:54]} 17. Nxe7+ {[%clk 0:02:21]}  Qxe7 {[%clk 0:01:55]} 18. Bxf6 {[%clk 0:02:04]}  gxf6 {[%clk 0:01:55]} 19. Qh4 {[%clk 0:02:05]}  Kg7 {[%clk 0:01:52]} 20. e5 {[%clk 0:02:02]}  Qd8 {[%clk 0:01:49]} 21. exf6+ {[%clk 0:02:01]}  Kh8 {[%clk 0:01:49]} 22. Rf4 {[%clk 0:01:56]}  Rg8 {[%clk 0:01:44]} 23. Raf1 {[%clk 0:01:55]}  Qd5 {[%clk 0:01:40]} 24. Qf2 {[%clk 0:01:52]}  e5 {[%clk 0:01:24]} 25. Rh4 {[%clk 0:01:46]}  e4 {[%clk 0:01:23]} 26. Ne3 {[%clk 0:01:24]}  Qc6 {[%clk 0:01:04]} 27. Nf5 {[%clk 0:01:13]}  exd3 {[%clk 0:00:22]} 28. Ne7 {[%clk 0:01:09]}  Qe6 {[%clk 0:00:09]} 29. Nxg8 {[%clk 0:00:59]}  Rxg8 {[%clk 0:00:08]} 30. cxd3 {[%clk 0:00:59]}  Bxd3 {[%clk 0:00:08]} 31. Re1 {[%clk 0:00:59]}  Qd5 {[%clk 0:00:06]} 32. g3 {[%clk 0:00:55]}  Bg6 {[%clk 0:00:04]} 33. Rf4 {[%clk 0:00:51]}  Rd8 {[%clk 0:00:03]} 34. Rf3 {[%clk 0:00:49]}  Be4 {[%clk 0:00:03]} 35. Rfe3 {[%clk 0:00:49]}  Bf5 {[%clk 0:00:03]} 36. Re8+ {[%clk 0:00:48]} 1-0


[Site "https://www.chess.com"]

[Event "Early Titled Tuesday Blitz | February 8 2022"]
[White "Golubka, Petro"]
[Black "Osmak, Yuliia"]
[WhiteFideId "14114224"]
[BlackFideId "14101602"]
[WhiteElo "2392"]
[BlackElo "2302"]
[Result "1-0"]
[Round "06"]
[TimeControl "180+1"]
[Date "2022.02.08"]
[WhiteClock "0:00:22"]
[BlackClock "0:00:01"]

1. c4 {[%clk 0:01:23]}  f5 {[%clk 0:02:55]} 2. Nc3 {[%clk 0:01:24]}  Nf6 {[%clk 0:02:55]} 3. Nf3 {[%clk 0:01:24]}  d6 {[%clk 0:02:53]} 4. d3 {[%clk 0:01:25]}  e5 {[%clk 0:02:53]} 5. h4 {[%clk 0:01:25]}  Be7 {[%clk 0:02:45]} 6. Bg5 {[%clk 0:01:23]}  Be6 {[%clk 0:02:39]} 7. e3 {[%clk 0:01:22]}  Nbd7 {[%clk 0:02:34]} 8. d4 {[%clk 0:01:22]}  e4 {[%clk 0:02:30]} 9. d5 {[%clk 0:01:19]}  Bf7 {[%clk 0:02:14]} 10. Nd4 {[%clk 0:01:18]}  g6 {[%clk 0:02:07]} 11. Be2 {[%clk 0:01:14]}  Ne5 {[%clk 0:01:58]} 12. Bf4 {[%clk 0:01:13]}  Qd7 {[%clk 0:01:55]} 13. Qc2 {[%clk 0:01:12]}  O-O-O {[%clk 0:01:51]} 14. O-O-O {[%clk 0:01:12]}  Kb8 {[%clk 0:01:37]} 15. Kb1 {[%clk 0:01:11]}  a6 {[%clk 0:01:36]} 16. a3 {[%clk 0:01:11]}  h6 {[%clk 0:01:23]} 17. Ka1 {[%clk 0:01:09]}  Rdg8 {[%clk 0:01:15]} 18. Rdg1 {[%clk 0:01:04]}  Qc8 {[%clk 0:01:06]} 19. Qb3 {[%clk 0:01:01]}  Ka8 {[%clk 0:01:05]} 20. Qa4 {[%clk 0:01:00]}  Nfd7 {[%clk 0:01:03]} 21. Qc2 {[%clk 0:00:58]}  Nc5 {[%clk 0:01:01]} 22. Bxe5 {[%clk 0:00:56]}  dxe5 {[%clk 0:01:01]} 23. Nb3 {[%clk 0:00:57]}  g5 {[%clk 0:00:54]} 24. Nxc5 {[%clk 0:00:56]}  Bxc5 {[%clk 0:00:54]} 25. b4 {[%clk 0:00:57]}  Be7 {[%clk 0:00:50]} 26. c5 {[%clk 0:00:58]}  gxh4 {[%clk 0:00:45]} 27. Qa4 {[%clk 0:00:54]}  c6 {[%clk 0:00:39]} 28. dxc6 {[%clk 0:00:51]}  Qxc6 {[%clk 0:00:37]} 29. Qxc6 {[%clk 0:00:51]}  bxc6 {[%clk 0:00:37]} 30. Bxa6 {[%clk 0:00:51]}  Rd8 {[%clk 0:00:32]} 31. Rd1 {[%clk 0:00:51]}  Bh5 {[%clk 0:00:28]} 32. Be2 {[%clk 0:00:47]}  Bf7 {[%clk 0:00:19]} 33. Kb2 {[%clk 0:00:46]}  Kb7 {[%clk 0:00:17]} 34. a4 {[%clk 0:00:43]}  Rhg8 {[%clk 0:00:17]} 35. Rxd8 {[%clk 0:00:42]}  Rxd8 {[%clk 0:00:17]} 36. Kc2 {[%clk 0:00:41]}  Rg8 {[%clk 0:00:16]} 37. Rh2 {[%clk 0:00:41]}  Bd5 {[%clk 0:00:10]} 38. a5 {[%clk 0:00:38]}  f4 {[%clk 0:00:10]} 39. Nxd5 {[%clk 0:00:30]}  cxd5 {[%clk 0:00:10]} 40. a6+ {[%clk 0:00:30]}  Kc6 {[%clk 0:00:09]} 41. Kc3 {[%clk 0:00:30]}  fxe3 {[%clk 0:00:08]} 42. fxe3 {[%clk 0:00:31]}  Rg3 {[%clk 0:00:08]} 43. Kd2 {[%clk 0:00:30]}  Bg5 {[%clk 0:00:07]} 44. Rh3 {[%clk 0:00:29]}  Bxe3+ {[%clk 0:00:06]} 45. Ke1 {[%clk 0:00:29]}  Rxh3 {[%clk 0:00:06]} 46. gxh3 {[%clk 0:00:30]}  Bd4 {[%clk 0:00:05]} 47. Kd2 {[%clk 0:00:30]}  e3+ {[%clk 0:00:04]} 48. Kc2 {[%clk 0:00:29]}  e4 {[%clk 0:00:04]} 49. Kb3 {[%clk 0:00:29]}  Be5 {[%clk 0:00:03]} 50. Bb5+ {[%clk 0:00:25]}  Kc7 {[%clk 0:00:02]} 51. Kc2 {[%clk 0:00:23]}  d4 {[%clk 0:00:02]} 52. Bc4 {[%clk 0:00:23]}  d3+ {[%clk 0:00:02]} 53. Bxd3 {[%clk 0:00:23]}  exd3+ {[%clk 0:00:03]} 54. Kxd3 {[%clk 0:00:24]}  Bf4 {[%clk 0:00:04]} 55. b5 {[%clk 0:00:24]}  Kb8 {[%clk 0:00:02]} 56. b6 {[%clk 0:00:24]}  Ka8 {[%clk 0:00:02]} 57. c6 {[%clk 0:00:23]}  Kb8 {[%clk 0:00:02]} 58. Ke2 {[%clk 0:00:23]}  Bg3 {[%clk 0:00:01]} 59. Kxe3 {[%clk 0:00:22]}  Bd6 {[%clk 0:00:01]} 60. Kd4 {[%clk 0:00:21]}  Bh2 {[%clk 0:00:01]} 61. Kd5 {[%clk 0:00:21]}  Bg1 {[%clk 0:00:01]} 62. c7+ {[%clk 0:00:21]}  Kc8 {[%clk 0:00:01]} 63. a7 {[%clk 0:00:22]} 1-0


[Site "https://www.chess.com"]

[Event "Early Titled Tuesday Blitz | February 8 2022"]
[White "Gombocz, Ferenc Jr."]
[Black "Kiseleva, Arina"]
[WhiteFideId "775029"]
[BlackFideId "4164989"]
[WhiteElo "1913"]
[BlackElo "1866"]
[Result "1/2-1/2"]
[Round "06"]
[TimeControl "180+1"]
[Date "2022.02.08"]
[WhiteClock "0:00:04"]
[BlackClock "0:00:06"]

1. c4 {[%clk 0:03:00]}  Nf6 {[%clk 0:02:56]} 2. g3 {[%clk 0:03:00]}  c6 {[%clk 0:02:48]} 3. Bg2 {[%clk 0:02:57]}  d5 {[%clk 0:02:48]} 4. Nf3 {[%clk 0:02:55]}  dxc4 {[%clk 0:02:39]} 5. O-O {[%clk 0:02:53]}  Bf5 {[%clk 0:02:38]} 6. Na3 {[%clk 0:02:42]}  b5 {[%clk 0:02:22]} 7. b3 {[%clk 0:02:41]}  cxb3 {[%clk 0:02:19]} 8. Qxb3 {[%clk 0:02:41]}  e6 {[%clk 0:01:53]} 9. Ne5 {[%clk 0:02:10]}  Qb6 {[%clk 0:01:38]} 10. Nxb5 {[%clk 0:02:00]}  Nd5 {[%clk 0:01:14]} 11. Bxd5 {[%clk 0:01:44]}  exd5 {[%clk 0:01:07]} 12. Nc3 {[%clk 0:01:38]}  Bd6 {[%clk 0:00:53]} 13. Qxb6 {[%clk 0:01:29]}  axb6 {[%clk 0:00:53]} 14. Nf3 {[%clk 0:01:28]}  O-O {[%clk 0:00:46]} 15. d3 {[%clk 0:01:28]}  Re8 {[%clk 0:00:40]} 16. Rb1 {[%clk 0:01:25]}  Nd7 {[%clk 0:00:34]} 17. Be3 {[%clk 0:01:03]}  Bc5 {[%clk 0:00:21]} 18. Bxc5 {[%clk 0:00:54]}  bxc5 {[%clk 0:00:22]} 19. e4 {[%clk 0:00:34]}  dxe4 {[%clk 0:00:19]} 20. dxe4 {[%clk 0:00:34]}  Bxe4 {[%clk 0:00:18]} 21. Nxe4 {[%clk 0:00:34]}  Rxe4 {[%clk 0:00:18]} 22. Rfd1 {[%clk 0:00:33]}  Nf6 {[%clk 0:00:16]} 23. Rdc1 {[%clk 0:00:32]}  h6 {[%clk 0:00:13]} 24. Rxc5 {[%clk 0:00:31]}  Rxa2 {[%clk 0:00:13]} 25. Rxc6 {[%clk 0:00:26]}  Ree2 {[%clk 0:00:12]} 26. Rf1 {[%clk 0:00:21]}  Ng4 {[%clk 0:00:12]} 27. Nd4 {[%clk 0:00:17]}  Red2 {[%clk 0:00:10]} 28. Nb3 {[%clk 0:00:14]}  Rdb2 {[%clk 0:00:09]} 29. Nc1 {[%clk 0:00:14]}  Ra1 {[%clk 0:00:07]} 30. Rc4 {[%clk 0:00:13]}  Nxf2 {[%clk 0:00:06]} 31. Rxf2 {[%clk 0:00:12]}  Rbb1 {[%clk 0:00:06]} 32. Rf1 {[%clk 0:00:12]}  f6 {[%clk 0:00:05]} 33. Rc8+ {[%clk 0:00:12]}  Kf7 {[%clk 0:00:05]} 34. Rc7+ {[%clk 0:00:12]}  Kg6 {[%clk 0:00:05]} 35. Kg2 {[%clk 0:00:12]}  h5 {[%clk 0:00:05]} 36. h4 {[%clk 0:00:08]}  Kh6 {[%clk 0:00:05]} 37. Rd1 {[%clk 0:00:07]}  Kg6 {[%clk 0:00:05]} 38. Re1 {[%clk 0:00:06]}  Kh6 {[%clk 0:00:05]} 39. Kh3 {[%clk 0:00:05]}  Kg6 {[%clk 0:00:05]} 40. Rd1 {[%clk 0:00:04]}  Kh6 {[%clk 0:00:05]} 41. Re1 {[%clk 0:00:04]}  Kg6 {[%clk 0:00:05]} 42. Rd1 {[%clk 0:00:04]}  Kh6 {[%clk 0:00:06]} 43. Re1 {[%clk 0:00:04]} 1/2-1/2


[Site "https://www.chess.com"]

[Event "Early Titled Tuesday Blitz | February 8 2022"]
[White "Gracia Alvarez, Gerardo Antonio"]
[Black "Williams, Simon K"]
[WhiteFideId "5109124"]
[BlackFideId "404454"]
[WhiteElo "2139"]
[BlackElo "2468"]
[Result "0-1"]
[Round "06"]
[TimeControl "180+1"]
[Date "2022.02.08"]
[WhiteClock "0:00:08"]
[BlackClock "0:00:22"]

1. e4 {[%clk 0:03:00]}  d6 {[%clk 0:02:50]} 2. d4 {[%clk 0:02:59]}  Nf6 {[%clk 0:02:49]} 3. Nc3 {[%clk 0:02:59]}  Nbd7 {[%clk 0:02:49]} 4. Nf3 {[%clk 0:02:57]}  e5 {[%clk 0:02:47]} 5. Bc4 {[%clk 0:02:55]}  Be7 {[%clk 0:02:46]} 6. O-O {[%clk 0:02:55]}  c6 {[%clk 0:02:46]} 7. a4 {[%clk 0:02:54]}  Qc7 {[%clk 0:02:45]} 8. Re1 {[%clk 0:02:53]}  h6 {[%clk 0:02:44]} 9. Ba2 {[%clk 0:02:47]}  Nf8 {[%clk 0:02:42]} 10. Be3 {[%clk 0:02:36]}  Rg8 {[%clk 0:02:31]} 11. a5 {[%clk 0:02:05]}  g5 {[%clk 0:02:29]} 12. Nd2 {[%clk 0:02:05]}  Ng6 {[%clk 0:02:26]} 13. Nf1 {[%clk 0:02:02]}  Nf4 {[%clk 0:02:24]} 14. Ng3 {[%clk 0:02:00]}  h5 {[%clk 0:02:14]} 15. Nf5 {[%clk 0:01:53]}  Bxf5 {[%clk 0:02:13]} 16. exf5 {[%clk 0:01:54]}  h4 {[%clk 0:02:00]} 17. g3 {[%clk 0:01:42]}  O-O-O {[%clk 0:01:46]} 18. Bxf7 {[%clk 0:01:38]}  Rg7 {[%clk 0:01:45]} 19. Be6+ {[%clk 0:01:24]}  Kb8 {[%clk 0:01:44]} 20. b4 {[%clk 0:01:07]}  Rh8 {[%clk 0:01:31]} 21. b5 {[%clk 0:00:58]}  hxg3 {[%clk 0:01:30]} 22. fxg3 {[%clk 0:00:56]}  Rgh7 {[%clk 0:01:29]} 23. b6 {[%clk 0:00:34]}  axb6 {[%clk 0:01:26]} 24. axb6 {[%clk 0:00:33]}  Qxb6 {[%clk 0:01:26]} 25. h4 {[%clk 0:00:20]}  gxh4 {[%clk 0:01:20]} 26. gxf4 {[%clk 0:00:18]}  exf4 {[%clk 0:01:15]} 27. Bf2 {[%clk 0:00:18]}  h3 {[%clk 0:01:11]} 28. Kh2 {[%clk 0:00:17]}  Rg7 {[%clk 0:01:04]} 29. Rg1 {[%clk 0:00:18]}  Rg2+ {[%clk 0:00:57]} 30. Rxg2 {[%clk 0:00:15]}  hxg2+ {[%clk 0:00:58]} 31. Kxg2 {[%clk 0:00:15]}  Qd8 {[%clk 0:00:43]} 32. Kf3 {[%clk 0:00:13]}  Rh3+ {[%clk 0:00:41]} 33. Ke2 {[%clk 0:00:13]}  Ng4 {[%clk 0:00:39]} 34. Qg1 {[%clk 0:00:11]}  Nxf2 {[%clk 0:00:34]} 35. Qxf2 {[%clk 0:00:11]}  Rxc3 {[%clk 0:00:34]} 36. Kd2 {[%clk 0:00:11]}  Rh3 {[%clk 0:00:25]} 37. d5 {[%clk 0:00:11]}  c5 {[%clk 0:00:24]} 38. Rb1 {[%clk 0:00:11]}  Qa5+ {[%clk 0:00:24]} 39. Ke2 {[%clk 0:00:11]}  Qc3 {[%clk 0:00:23]} 40. Rc1 {[%clk 0:00:08]}  Re3+ {[%clk 0:00:22]} 41. Kf1 {[%clk 0:00:08]}  Rf3 {[%clk 0:00:22]} 0-1


[Site "https://www.chess.com"]